Workbook

Sheet Achats 2023
A1: TABLEAU DE SUIVI DES ACHATS 2023
A3: N° | B3: Usine | C3: Qui | D3: Jour | E3: Mois | F3: Date Liv prév | G3: Mode Paiement | H3: Délai Paiement | I3: Échéance | J3: Acompte O/N | K3: Fournisseur | L3: Service | M3: Objet principal | N3: Montant HT | O3: Frais Port & Emballage | P3: Montant Total HT | Q3: Mois de réception | R3: N° Facture | S3: Date Facture | T3: Montant réel HT | U3: Date paiement
A4: C2315001 | B4: Teissières | C4: MV | D4: 7 | E4: 2 | G4: Virement | H4: 45 jours | I4: FDM | J4: N | K4: Eurofins centre est (St Etienne) | L4: analyses externes | M4: sortie binôme 1 | N4: 11.44 | O4: 8.32 | P4: =N4+O4 -> 19.76 | R4: FELD-SD-23-000668 | S4: 2023-02-28 | T4: 19.76 | U4: 2023-03-31
A5: C2360001 | B5: Marolles | C5: FG | D5: 3 | E5: 1 | G5: Virement | H5: 45 jours | I5: FDM | J5: N | K5: KILOUTOU | L5: location matériel | M5: Carotteuse diametre 300 mm | N5: 477.99 | P5: =N5+O5 -> 477.99 | Q5: 1 | R5: F30798257 | S5: 2023-01-11 | T5: 439.83 | U5: 2023-02-28
A6: C2337001 MAWA | B6: MAWA | C6: FD | D6: 3 | E6: 1 | G6: Virement | H6: 45 jours | I6: FDM | J6: N | K6: Marceul | L6: prdts maint. | M6: Masque de soudure + Verre loupe | N6: 77.15 | P6: 77.15 | R6: F33629 | S6: 2023-01-31 | T6: 77.15 | U6: 2023-02-28
A7: C2315002 | B7: Teissières | C7: RB | D7: 5 | E7: 1 | G7: Virement | H7: 45 jours | I7: FDM | J7: N | K7: GERVAIS | L7: pièces maint. | M7: clé à choc pour réparation OP | N7: 539.42 | P7: 539.42 | R7: F23000848 | S7: 2023-01-31 | T7: 539.42 | U7: 2023-03-15
A8: C2360002 | B8: Marolles | C8: SD | D8: 5 | E8: 1 | K8: INTERACTIVE PAPETERIE | L8: fournitures bureau | M8: Divers | N8: 141.09 | O8: 0 | P8: 141.09 | Q8: 1 | R8: F266212 | S8: 2023-01-31 | T8: 141.09 | U8: 2023-02-28
A9: C2315003 | B9: Teissières | C9: RB | D9: 5 | E9: 1 | G9: Virement | H9: 45 jours | I9: FDM | J9: N | K9: RS | L9: pièces maint. | M9: pallier x2 / gillets x12 / douilles et clés | N9: 247.88 | P9: 247.88 | R9: F482178328 | S9: 2023-01-05 | T9: 247.88 | U9: 2023-02-28
A10: C2360003 | B10: Marolles | C10: FG | D10: 5 | E10: 1 | G10: Virement | H10: 45 jours | I10: FDM | J10: N | K10: ALPHEA | L10: /s traitance maint | M10: remis en place mot de passe ecran bardi | N10: 330 | P10: 330 | Q10: 1 | R10: F2301-10790 | S10: 2023-01-06 | T10: 330 | U10: 2023-02-28
A11: C2360004 | B11: Marolles | C11: FG | D11: 5 | E11: 1 | G11: Virement | H11: 45 jours | I11: FDM | J11: N | K11: RS | L11: pièces maint. | M11: Ampoule spot, taraud, soudure, adhesif sortie ligne + ect | N11: 151.08 | P11: 151.08 | Q11: 1 | R11: F482178329 | S11: 2023-01-05 | T11: 151.08 | U11: 2023-02-28
A12: C2337002 MAWA | B12: MAWA | C12: RC | D12: 6 | E12: 1 | G12: Virement | H12: 45 jours | I12: FDM | J12: N | K12: Moulé | L12: prdts maint. | M12: Produits projet MAWA | N12: 21.49 | P12: 21.49 | R12: F23010110 | S12: 2023-01-31 | T12: 21.49 | U12: 2023-02-28
A13: C2384001 | B13: Monteux | C13: RB | D13: 10 | E13: 1 | G13: Virement | H13: 45 jours | I13: FDM | J13: N | K13: Yoann D | L13: /s traitance maint | M13: 2 jeux de mors pour déboucheuse Bardi | N13: 520 | P13: 520 | R13: F23-00008 | S13: 2023-02-10 | T13: 520 | U13: 2023-03-31
A14: C2384002 | B14: Monteux | C14: GC | D14: 10 | E14: 1 | G14: Virement | H14: 45 jours | I14: FDM | J14: n | K14: RJ International | L14: pièces maint. | M14: paliers navette | N14: 55.9 | P14: 55.9 | R14: F7237915 | S14: 2023-01-15 | T14: 55.9 | U14: 2023-02-28
A15: C2384003 | B15: Monteux | C15: GC | D15: 10 | E15: 1 | G15: Virement | H15: 45 jours | I15: FDM | J15: n | K15: Videojet | L15: pièces maint. | M15: Solvant | N15: 444.84 | P15: 444.84 | R15: F600304341 | S15: 2023-01-10 | T15: 444.84 | U15: 2023-02-28
A16: C2337001 | B16: Saint Hippo | C16: FD | D16: 3 | E16: 1 | F16: 2023-01-03 | G16: Virement | H16: 45 jours | I16: FDM | J16: n | K16: Marceul/ AIR LIQUIDE | L16: pièces maint. | M16: Bbs gaz pour soudure | P16: 0 | Q16: 01 | R16: F958630860 | S16: 2023-01-31 | T16: 260.74 | U16: 2023-02-28
A17: C2360005 | B17: Marolles | C17: FG | D17: 10 | E17: 1 | G17: Virement | H17: 45 jours | I17: FDM | J17: n | K17: LINDE | L17: consommables de prod | M17: GAZ C02 | N17: 538.2 | O17: 125.6 | P17: 663.8 | Q17: 1 | R17: F4231279264 | S17: 2023-01-31 | T17: 887.42 | U17: 2023-03-15
A18: C2315004 | B18: Teissières | C18: RB | D18: 10 | E18: 1 | G18: Virement | H18: 45 jours | I18: FDM | J18: N | K18: RS | L18: pièces maint. | M18: vanne 1/2 inox et 3/4 + connection wago | N18: 83 | P18: =N18+O18 -> 83 | R18: F482213201 | S18: 2023-01-10 | T18: 83 | U18: 2023-02-28
A19: C2384004 | B19: Monteux | C19: GC | D19: 11 | E19: 1 | G19: Virement | H19: 45 jours | I19: FDM | J19: N | K19: Simonnot | L19: maint chariots élév | M19: Révision Still | P19: 0 | R19: F012309227 | S19: 2023-01-24 | T19: 120.5 | U19: 2023-03-31
A20: C2384005 | B20: Monteux | C20: GC | D20: 11 | E20: 1 | G20: Virement | H20: 45 jours | I20: FDM | J20: N | K20: RJ International | L20: pièces maint. | M20: roulement navette | N20: 25.2 | P20: 25.2 | R20: F7237915 | S20: 2023-01-15 | T20: 25.2 | U20: 2023-02-28
A21: C2360006 | B21: Marolles | C21: SD | D21: 11 | E21: 1 | K21: BIOKAR | L21: PRDTS LABO | M21: Milieux de culture | O21: 0 | P21: 0 | R21: F10198967/F10199179 | S21: 12 ET 16/01/2023 | T21: 342.4 | U21: 28/02et31/03/2023
A22: C2337002 | B22: Saint Hippo | C22: FD | D22: 11 | E22: 1 | F22: 2023-01-01 | G22: Virement | H22: 45 jours | I22: FDM | J22: N | K22: SEFI | L22: prdts maint. | M22: Accouplement pour reparation convoyeur sortie laveuse | N22: 7.84 | P22: 7.84 | Q22: 01 | R22: F213381 | S22: 2023-01-27 | T22: 7.84 | U22: 2023-02-28
A23: C2337003 MAWA | B23: MAWA | C23: FD | D23: 11 | E23: 1 | G23: Virement | H23: 45 jours | I23: FDM | J23: N | K23: SEFI | L23: prdts maint. | M23: Palier auto aligneur | N23: 112.92 | P23: 112.92 | Q23: 01 | R23: F213382/F237732 | S23: 27/01 ET 24/02/2023 | T23: 112.92 | U23: 28/02 et 31/03/2023
A24: C2315005 | B24: Teissières | C24: LD | D24: 11 | E24: 1 | G24: Virement | H24: 30 jours | I24: FDM | J24: N | K24: PLEIN CIEL | L24: fournitures bureau | M24: Feuilles A4 Stylo Scotch devidoir | N24: 157.86 | P24: 157.86 | R24: F266211 | S24: 2023-01-31 | T24: 157.86 | U24: 2023-02-28
A25: C2337004 | B25: Saint Hippo | C25: JC | D25: 11 | E25: 1 | F25: S 5 ou 6 ? | G25: Virement | H25: Réception facture | I25: Autre | J25: N | K25: BDR Industrie | L25: consommables de prod | M25: 51 intercalaires en OSB 9 mm pour essais alternative à l'isorel 5 mm | N25: 315.29 | P25: 315.29 | R25: FA00012953 | S25: 2023-01-31 | T25: 315.29 | U25: 2023-01-31
A26: C2360007 | B26: Marolles | C26: FG | D26: 12 | E26: 1 | G26: Virement | H26: 45 jours | I26: FDM | J26: N | K26: JUNGHEINRICH | L26: /s traitance maint | M26: Intervention chariot élévateur | N26: 265.3 | P26: 265.3 | Q26: 1 | R26: F5586708630 | S26: 2023-01-17 | T26: 280.05 | U26: 2023-02-28
A27: C2315006 | B27: Teissières | C27: MV | E27: 1 | G27: Virement | H27: 45 jours | I27: FDM | J27: N | K27: BIOKAR | L27: prdts labo | M27: Milieux de culture | N27: 429.09 | O27: 0 | P27: 429.09 | R27: F10199180 | S27: 2023-01-16 | T27: 429.09 | U27: 2023-03-31
A28: C2360008 | B28: Marolles | C28: FG | D28: 16 | E28: 1 | G28: Virement | H28: 45 jours | I28: FDM | J28: N | K28: JUNGHEINRICH | L28: /s traitance maint | M28: Reparation chariot efg215 ( flexible HS suite fuite d'acide) | N28: 1214.94 | P28: 1214.94 | Q28: 1 | R28: F5586713981 | S28: 2023-01-24 | T28: 1214.94 | U28: 2023-02-28
A29: C2337004 MAWA | B29: MAWA | C29: FD | D29: 16 | E29: 1 | G29: Virement | H29: 45 jours | I29: FDM | J29: N | K29: Marceul | L29: prdts maint. | M29: Bombe peinture et diovers consommables | N29: 36.97 | P29: =N29+O29 -> 36.97 | Q29: 01 | R29: F33629 | S29: 2023-01-31 | T29: 39.67 | U29: 2023-02-28
A30: C2315007 | B30: Teissières | C30: RB | D30: 17 | E30: 1 | G30: Virement | H30: 45 jours | I30: FDM | J30: N | K30: RS | L30: prdts maint. | M30: régulateurs de débit | N30: 124.4 | O30: 0 | P30: 124.4 | R30: F482250462 | S30: 2023-01-17 | T30: 124.4 | U30: 2023-02-28
A31: C2337005 | B31: Saint Hippo | C31: FD | D31: 18 | E31: 1 | G31: Virement | H31: 45 jours | I31: FDM | J31: N | K31: Electro tours | L31: consommables de prod | M31: Prises Chariots | N31: 49.2 | P31: 49.2 | R31: F040535 | S31: 2023-01-31 | T31: 49.2 | U31: 2023-02-28
A32: C2337006 | B32: Saint Hippo | C32: FD | D32: 18 | E32: 1 | G32: Virement | H32: 45 jours | I32: FDM | J32: N | K32: BWT | L32: Sécurité / Environnement | M32: Etat des lieux boitier UV 1 | N32: 361 | P32: =N32+O32 -> 361
A33: C2360009 | B33: Marolles | C33: SD | D33: 18 | E33: 1 | G33: Virement | H33: 30 jours | I33: FDM | J33: N | K33: PLEIN CIEL | L33: fournitures bureau | M33: PLASTIFIEUSE + MASSICOT | N33: 185.22 | O33: 0 | P33: 185.22 | Q33: 1 | R33: F266212 | S33: 2023-01-31 | T33: 185.22 | U33: 2023-02-28
A34: C2360010 | B34: Marolles | C34: FG | D34: 20 | E34: 1 | G34: Virement | H34: 45 jours | I34: FDM | J34: N | K34: RS | L34: pièces maint. | M34: divers + capteur bardi | N34: 97.8 | P34: 97.8 | Q34: 1 | R34: F482272165 | S34: 2023-01-20 | T34: 97.8 | U34: 2023-02-28
A35: C2360011 | B35: Marolles | C35: FG | D35: 20 | E35: 1 | G35: Virement | H35: 45 jours | I35: FDM | J35: N | K35: RS | L35: Sécurité / Environnement | M35: tapis anti fatigue | N35: 286.5 | P35: 286.5 | Q35: 1 | R35: F482272166 | S35: 2023-01-20 | T35: 286.5 | U35: 2023-02-28
A36: C2337005 MAWA | B36: MAWA | C36: FD | D36: 16 | E36: 1 | G36: Virement | H36: 45 jours | I36: FDM | J36: N | K36: Electro tours | L36: pièces maint. | M36: Divers contacteurs | N36: 273.19 | P36: 273.19 | Q36: 01 | R36: F040535 | S36: 2023-01-31 | T36: 273.19 | U36: 2023-02-28
A37: C2384006 | B37: Monteux | C37: RB | D37: 23 | E37: 1 | G37: Virement | H37: 30 jours | I37: FDM | J37: N | K37: ERICKS | L37: pièces maint. | M37: vannes remplisseuse et kits maintenance/Pièces pour usine de MAROLLES | N37: 2219.3 | O37: 80 | P37: =N37+O37 -> 2299.3 | R37: F9270347740 | S37: 2023-01-25 | T37: 2299.4 | U37: 2023-02-28
A38: C2337007 | B38: Saint Hippo | C38: FD | D38: 24 | E38: 1 | G38: Virement | H38: 45 jours | I38: FDM | J38: N | K38: Moule | L38: pièces maint. | M38: Divers produits interrupteurs, tricoclair,,, | N38: 120.9 | P38: 120.9 | R38: F23010110 | S38: 2023-01-31 | T38: 122.57 | U38: 2023-02-28
A39: C2337008 | B39: Saint Hippo | C39: RB | D39: 25 | E39: 1 | G39: Virement | H39: 45 jours | I39: FDM | J39: N | K39: ECOLAB | L39: pièces maint. | M39: cannes d'aspiration et clapets | N39: 702 | O39: 105.3 | P39: =N39+O39 -> 807.3 | R39: F6320720537/F6320721881 | S39: 26/01 ET 31/01/2023 | T39: 842.4 | U39: 2023-02-28
A40: C2337009 | B40: Saint Hippo | C40: FD | D40: 25 | E40: 1 | G40: Virement | H40: 45 jours | I40: FDM | J40: N | K40: Fumetalize | L40: Batiment | M40: SINISTRE Remplacement des skydomes suite à tempète de grêle du 19/06/2022 | N40: 6969.9 | P40: =N40+O40 -> 6969.9 | Q40: 4 | R40: FA00047946 | S40: 2023-04-18 | T40: 6969.9 | U40: 2023-05-15
A41: C2337010 | B41: Saint Hippo | C41: FD | D41: 25 | E41: 1 | G41: Virement | H41: 45 jours | I41: FDM | J41: N | K41: Fumetalize | L41: Batiment | M41: Deplacement de 2 treuils car mal placés et 1 HS suite à maintenance de 2021 et 2022 | N41: 811.5 | P41: 811.5 | Q41: 4 | R41: FA00047947 | S41: 2023-04-18 | T41: 811.5 | U41: 2023-05-15
A42: C2360012 | B42: Marolles | C42: FG | D42: 25 | E42: 1 | G42: Virement | H42: 45 jours | I42: FDM | J42: N | K42: Prolians | L42: Batiment | M42: peinture sol + ect | N42: 429.37 | P42: 429.37 | Q42: 1 | R42: FRS3753 | S42: 2023-01-31 | T42: 429.37 | U42: 2023-02-28
A43: C2360013 | B43: Marolles | C43: FG | D43: 25 | E43: 1 | K43: PILLAUD | L43: Batiment | M43: betonniere, brouette, ciment, sable, ect ,,, | N43: 993.45 | P43: 993.45 | R43: F1650488 | S43: 2023-03-07 | T43: 993.45 | U43: 2023-02-28
A44: C2384007 | B44: Monteux | C44: LM | D44: 26 | E44: 1 | G44: Virement | H44: 45 jours | I44: FDM | J44: n | K44: grosseron | L44: matériel labo | M44: solution etalon, boite de pétrie, … | N44: 507.18 | P44: 507.18 | R44: FV2023651399/FV2023660899 | S44: 27/01 ET 17/03/2023 | T44: 507.18 | U44: 2023-03-31
A45: C2360014 | B45: Marolles | C45: FG | D45: 26 | E45: 1 | G45: Virement | H45: 45 jours | I45: FDM | J45: n | K45: TRENOIS | L45: prdts maint. | M45: DIVERS | N45: 129.56 | P45: 129.56 | R45: F1469116 | S45: 2023-01-31 | T45: 133.71 | U45: 2023-02-28
A46: C2399001 | B46: Multi Sources | C46: MV | D46: 26 | E46: 1 | G46: Virement | H46: 45 jours | I46: FDM | J46: N | K46: France Sécurité | L46: Sécurité / Environnement | M46: Veste Softshelle Himalaya | N46: 947.94 | O46: 4.5 | P46: 952.44 | R46: F3630171 | S46: 2023-02-25 | T46: 952.44 | U46: 03/05/02023
A47: C2399002 | B47: Multi Sources | C47: MV | D47: 26 | E47: 1 | G47: Virement | H47: 45 jours | I47: FDM | J47: N | K47: France Sécurité | L47: Sécurité / Environnement | M47: Veste Softshelle Himalaya | N47: 406.26 | O47: 4.5 | P47: 410.76 | R47: F2630172 | S47: 2023-02-25 | T47: 410.76 | U47: 2023-05-03
A48: C2337011 | B48: Saint Hippo | C48: JC | D48: 27 | E48: 1 | G48: Virement | H48: 30 jours | I48: NET | J48: N | K48: Hygéo | L48: /s traitance géné | M48: Etude et dossier de renouvelt autorisation pompage | N48: 4905 | O48: 0 | P48: 4905
A49: C2384008 | B49: Monteux | C49: GC | D49: 27 | E49: 1 | G49: Virement | H49: 30 jours | I49: FDM | J49: N | K49: SAFI | L49: pièces maint. | M49: Joints raccord clamp | N49: 15.5 | P49: 15.5 | R49: F04224349 | S49: 2023-01-31 | T49: 15.5 | U49: 2023-02-28
A50: C2337006 MAWA | B50: MAWA | C50: FD | D50: 6 | E50: 1 | G50: Virement | H50: 45 jours | I50: FDM | J50: N | K50: Spraying system | L50: prdts maint. | M50: Buses projet MAWA | N50: 431.04 | O50: 0 | P50: =N50+O50 -> 431.04 | R50: FAC 2301168 | S50: 2023-03-03 | T50: 431.04 | U50: 2023-02-28
A51: C2360015 | B51: Marolles | C51: FG | D51: 30 | E51: 1 | G51: Virement | H51: 45 jours | I51: FDM | J51: N | K51: TRENOIS | L51: Sécurité / Environnement | M51: Gilet orange + cliquet+ chaussure | N51: 284.68 | P51: 284.68 | R51: F1469116/F1527966 | S51: 31/01 ET 28/02/2023/2023 | T51: 284.68 | U51: 28/02et31/03/2023
A52: C2360016 | B52: Marolles | C52: FG | D52: 30 | E52: 1 | G52: Virement | H52: 45 jours | I52: FDM | J52: N | K52: LINDE | L52: consommables de prod | M52: gaz c02 | N52: 538.2 | O52: 125.6 | P52: 663.8 | R52: F4231531031 | S52: 2023-02-28 | T52: 685.1 | U52: 2023-04-15
A53: C2315008 | B53: Teissières | C53: MV | D53: 31 | E53: 1 | G53: Virement | H53: 45 jours | I53: FDM | J53: N | K53: ARMOSA | L53: hygiène générale / personnel | M53: insectocuteur | N53: 97.21 | O53: 27.32 | P53: 124.53 | R53: FAED10SIG23020006 | S53: 2023-02-02 | T53: 125.13 | U53: 2023-03-31
A54: C2337012 | B54: Saint Hippo | C54: CT | D54: 1 | E54: 2 | G54: Virement | H54: 45 jours | I54: FDM | J54: n | K54: BIOKAR | L54: prdts labo | M54: geloses | N54: 335.8 | P54: 335.8 | Q54: 2 | R54: F10200683 | S54: 2023-02-02 | T54: 335.8 | U54: 2023-03-31
A55: C2384009 | B55: Monteux | C55: LM | D55: 1 | E55: 2 | G55: virement | H55: 45 jours | I55: FDM | J55: n | K55: bres bureautique | L55: fournitures bureau | M55: calendrier, prochette, … | N55: 13.23 | P55: 13.23 | Q55: 1 | R55: FCA-024028 | S55: 2023-01-31 | T55: 13.23 | U55: 2023-02-28
A56: C2384010 | B56: Monteux | C56: GC | D56: 1 | E56: 2 | G56: Virement | H56: 30 jours | I56: FDM | J56: N | K56: TRENOIS | L56: pièces maint. | M56: visserie pour atelier | N56: 249.22 | P56: 249.22 | R56: F1527966 | S56: 2023-02-28 | T56: 249.22 | U56: 2023-03-31
A57: C2384011 | B57: Monteux | C57: GC | D57: 1 | E57: 2 | G57: Virement | H57: 30 jours | I57: FDM | J57: N | K57: TRENOIS | L57: pièces maint. | M57: Graisseurs + clips | N57: 110.55 | P57: 110.55 | R57: F1527966 | S57: 2023-02-28 | T57: 110.55 | U57: 2023-03-31
A58: C2337007 MAWA | B58: MAWA | C58: FD | D58: 2 | E58: 2 | G58: Virement | H58: 45 jours | I58: FDM | J58: N | K58: PR INDUSTRIE | L58: pièces maint. | M58: Buses projet MAWA | N58: 1174.54 | O58: 17.19 | P58: 1191.73 | Q58: 3 | R58: FAC CFA65478 | S58: 2023-03-27 | T58: 1191.73 | U58: 2023-02-28
A59: C2337008 MAWA | B59: MAWA | C59: FD | D59: 2 | E59: 2 | G59: Virement | H59: 45 jours | I59: FDM | J59: N | K59: BMP | L59: pièces maint. | M59: Pompes laveuse projet MAWA | N59: 3147.84 | P59: =N59+O59 -> 3147.84 | Q59: 02 | R59: F42302056 | S59: 2023-02-09 | T59: 3147.84 | U59: 2023-04-15
A60: C2337009 MAWA | B60: MAWA | C60: FD | D60: 2 | E60: 2 | G60: Virement | H60: 45 jours | I60: FDM | J60: N | K60: BMP | L60: pièces maint. | M60: Pompe Forage projet MAWA | N60: 1496.64 | P60: 1496.64 | R60: F42302042 | S60: 2023-02-08 | T60: 1496.64 | U60: 2023-04-15
A61: C2384012 | B61: Monteux | C61: LM | D61: 2 | E61: 2 | G61: Virement | H61: 45 jours | I61: FDM | J61: n | K61: BIOKAR | L61: PRDTS LABO | M61: Milieux de culture | N61: 371.19 | P61: 371.19 | R61: F10200684/F10200976 | S61: 02 et 06/02/2023 | T61: 371.19 | U61: 2023-03-31
A62: C2337013 | B62: Saint Hippo | C62: FD | D62: 25 | E62: 1 | G62: Virement | H62: 46 jours | I62: FDM | J62: n | K62: BMH | L62: /s traitance maint | M62: Reparation carte afficheur forage | N62: 30 | P62: =N62+O62 -> 30 | Q62: 12
A63: C2315009 | B63: Teissières | C63: RB | D63: 3 | E63: 2 | G63: Virement | H63: 45 jours | I63: FDM | J63: N | K63: RS | L63: pièces maint. | M63: piles de sauvegarde et WD40 et presses etoupes | N63: 221.25 | P63: 221.25 | R63: F482352089 | S63: 2023-02-03 | T63: 221.25 | U63: 2023-03-31
A64: C2360017 | B64: Marolles | C64: FG | D64: 3 | E64: 2 | G64: Virement | H64: 45 jours | I64: FDM | J64: N | K64: TRENOIS | L64: pièces maint. | M64: tuyau aspiration debouchonneuse | N64: 298 | P64: 298 | R64: F1527966 | S64: 2023-02-28 | T64: 143.43
A65: C2360018 | B65: Marolles | C65: FG | D65: 3 | E65: 2 | G65: Virement | H65: 45 jours | I65: FDM | J65: N | K65: TRENOIS | L65: prdts maint. | M65: Batterie perceuse, furet karcher + foret + chiffons + ect | N65: 918.97 | P65: 918.97 | R65: F1527966 | S65: 2023-02-28 | T65: 693.73 | U65: 2023-03-31
A66: C2315010 | B66: Teissières | C66: RB | D66: 3 | E66: 2 | G66: Virement | H66: 45 jours | I66: FDM | J66: N | K66: Videojet | L66: pièces maint. | M66: Solvant | N66: 222.42 | P66: 222.42 | Q66: 2 | R66: F600306496 | S66: 2023-02-07 | T66: 222.42 | U66: 2023-03-31
A67: C2315011 | B67: Teissières | C67: RB | D67: 6 | E67: 2 | G67: Virement | H67: 45 jours | I67: FDM | J67: N | K67: Yesss | L67: pièces maint. | M67: tube I / fixations et multiprises | N67: 156.13 | P67: 156.13 | R67: FAUC-022407 | S67: 2023-02-28 | T67: 156.13 | U67: 2023-05-03
A68: C2337010 MAWA | B68: MAWA | C68: FD | D68: 8 | E68: 2 | G68: Virement | H68: 45 jours | I68: FDM | J68: N | K68: EJM | L68: pièces maint. | M68: Joint silicone trappes | N68: 893.76 | P68: 893.76 | R68: F12083 | S68: 2023-03-17 | T68: 918.76
A69: C2360019 | B69: Marolles | C69: RB | D69: 8 | E69: 2 | G69: Virement | H69: 45 jours | I69: FDM | J69: N | K69: ALPHEA | L69: /s traitance maint | M69: sauvegarde du programme laveuse | N69: 900 | P69: =N69+O69 -> 900 | R69: F230 10811 | S69: 2023-02-14 | T69: 900 | U69: 2023-03-31
A70: C2337014 | B70: Saint Hippo | C70: FD | D70: 8 | E70: 2 | G70: Virement | H70: 45 jours | I70: FDM | J70: n | K70: Electro tours | L70: pièces maint. | M70: Relais miniature et peignes | N70: 66.84 | P70: =N70+O70 -> 66.84 | R70: F041824 | S70: 2023-02-28 | T70: 66.84 | U70: 2023-03-31
A71: C2337015 | B71: Saint Hippo | C71: CT | D71: 17 | E71: 2 | G71: Virement | H71: 45 jours | I71: FDM | J71: n | K71: Mabeo | L71: hygiène générale / personnel | M71: chaussures de securité : remy, stéphane et catherine | N71: 216.37 | P71: =N71+O71 -> 216.37 | Q71: 2 | R71: F23057456 | S71: 2023-02-20 | T71: 225.32 | U71: 2023-05-03
A72: C2384013 | B72: Monteux | C72: GC | D72: 10 | E72: 2 | G72: Virement | H72: 45 jours | I72: FDM | J72: n | K72: RS | L72: pièces maint. | M72: ressorts circlips | N72: 83.07 | P72: =N72+O72 -> 83.07 | Q72: 2 | R72: F482387482 | S72: 2023-02-10 | T72: 83.07 | U72: 2023-03-31
A73: C2315012 | B73: Teissières | C73: MV | D73: 21 | E73: 2 | G73: Virement | H73: 45 jours | I73: FDM | J73: N | K73: Eurofins centre est (St Etienne) | L73: analyses externes | M73: As-Sb Entrée Traitement + sortie binôme 1 | N73: 22.88 | O73: 16.64 | P73: 39.52 | R73: FEL-SD-23-000679 | S73: 2023-02-28 | T73: 39.52 | U73: 2023-03-31
A74: C2360020 | B74: Marolles | C74: SD | D74: 14 | E74: 2 | K74: INTERACTIVE PAPETERIE | L74: fournitures bureau | M74: divers | N74: 126.14 | O74: 0 | P74: 126.14 | R74: F266897 | S74: 2023-02-28 | T74: 126.14 | U74: 2023-03-31
A75: C2337011 MAWA | B75: MAWA | C75: FD | D75: 14 | E75: 2 | G75: Virement | H75: 45 jours | I75: FDM | J75: N | K75: Creat'Inox | L75: pièces maint. | M75: Bride Dn32 pompe desinfection MAWA | N75: 349.23 | O75: 20 | P75: 369.23 | R75: FA23057 | S75: 2023-02-28 | T75: 369.23 | U75: 2023-05-03
A76: C2337017 | B76: Saint Hippo | C76: FD | D76: 14 | E76: 2 | G76: Virement | H76: 45 jours | I76: FDM | J76: n | K76: Poly-service 37 | L76: pièces maint. | M76: Location Grue pour intervention Forage du 7 et 8 /12/2023 | N76: 1750 | P76: =N76+O76 -> 1750 | Q76: 12
A77: C2360021 | B77: Marolles | C77: FG | D77: 14 | E77: 2 | G77: Virement | H77: 45 jours | I77: FDM | J77: n | K77: RS | L77: pièces maint. | M77: capteur paletiseur + capteur bardi + palier convoyeur + etiquettes | N77: 673.85 | P77: =N77+O77 -> 673.85 | R77: F 482407659 | S77: 2023-02-14 | T77: 673.85 | U77: 2023-03-31
A78: C2384014 | B78: Monteux | C78: GC | D78: 16 | E78: 2 | G78: Virement | H78: 45 jours | I78: FDM | J78: n | K78: Cogeflu | L78: prdts maint. | M78: Actionneur pour vanne bardi | N78: 1966.83 | P78: 1966.83 | R78: FC_017693 | S78: 2023-02-24 | T78: 1966.83 | U78: 2023-04-15
A79: C2384015 | B79: Monteux | C79: GC | D79: 20 | E79: 2 | G79: Virement | H79: 45 jours | I79: FDM | J79: N | K79: RS | L79: pièces maint. | M79: compteur production | N79: 118.8 | P79: 118.8 | R79: F482439676 | S79: 2023-02-20 | T79: 118.8 | U79: 2023-03-31
A80: C2337012 MAWA | B80: MAWA | C80: FD | D80: 21 | E80: 2 | G80: Virement | H80: 45 jours | I80: FDM | J80: N | K80: Electro tours | L80: pièces maint. | M80: divers composants electriques | N80: 164.05 | P80: 164.05 | R80: F041824 | S80: 2023-02-28 | T80: 164.05 | U80: 2023-03-31
A81: C2360022 | B81: Marolles | C81: SD | D81: 22 | E81: 2 | K81: Grosseron | L81: prdts labo | M81: Joint autuclave + membranes | N81: 395.12 | O81: 0 | P81: 395.12 | Q81: 3 | R81: FV2023660841 | S81: 2023-03-17 | T81: 395.12
A82: C2315013 | B82: Teissières | C82: MV | D82: 28 | E82: 2 | G82: Virement | H82: 45 jours | I82: FDM | J82: N | K82: Eurofins centre est (St Etienne) | L82: analyses externes | M82: Fer sortie Déferriseur et Mn Sortie Démanganiseur | N82: 11.44 | O82: 16.64 | P82: 28.08 | R82: FEL-SD-23-001061 | S82: 2023-03-30 | T82: 28.08 | U82: 2023-05-03
A83: C2384016 | B83: Monteux | C83: GC | D83: 22 | E83: 2 | G83: Virement | H83: 45 jours | I83: FDM | J83: n | K83: BMP | L83: pièces maint. | M83: garniture réparation pompe rejets | N83: 1351.02 | P83: 1351.02 | R83: F42302173 | S83: 2023-02-28 | T83: 1351.02 | U83: 2023-04-15
A84: C2360023 | B84: Marolles | C84: FG | D84: 22 | E84: 2 | G84: Virement | H84: 45 jours | I84: FDM | J84: n | K84: FANUC | L84: /s traitance maint | M84: Maintenance type B robot Fanuc | N84: 2200 | P84: 2200 | R84: F40841310 | S84: 2023-02-23 | T84: 2200 | U84: 2023-05-03
A85: C2360024 | B85: Marolles | C85: FG | D85: 22 | E85: 2 | G85: Virement | H85: 45 jours | I85: FDM | J85: n | K85: RS | L85: consommables de prod | M85: pile pour telecommande + adhesif feuilles sortie de ligne | N85: 66.85 | P85: 66.85 | R85: F482419404 | S85: 2023-02-22 | T85: 66.85 | U85: 2023-03-31
A86: C2360025 | B86: Marolles | C86: FG | D86: 22 | E86: 2 | G86: Virement | H86: 45 jours | I86: FDM | J86: n | K86: LINDE | L86: consommables de prod | M86: gaz c02 | N86: 538.2 | O86: 125.6 | P86: 663.8 | R86: F4231531031 | S86: 2023-02-28 | T86: 685.1 | U86: 2023-04-15
A87: C2337018 | B87: Saint Hippo | C87: JC | D87: 22 | E87: 2 | F87: 2023-12-08 | G87: Virement | H87: 30 jours | I87: FDM | J87: n | K87: Sade forages | L87: /s traitance maint | M87: Passage caméra du forage | N87: 2075 | P87: 2075 | Q87: 12
A88: C2384017 | B88: Monteux | C88: GC | D88: 23 | E88: 2 | G88: Virement | H88: 45 jours | I88: FDM | J88: n | K88: bres bureautique | L88: fournitures bureau | M88: Tableau d'affichage | N88: 102.21 | P88: 102.21 | R88: FCA-24415 | S88: 2023-02-28 | T88: 102.21 | U88: 2023-03-31
A89: C2399003 | B89: Multi Sources | C89: MV | D89: 23 | E89: 2 | G89: Chèque | K89: Centre National du Droit du travail | L89: Sécurité / Environnement | M89: affichage obligatoire mise à jour | N89: 145 | O89: 6.3 | P89: 151.3 | R89: FCFT000032111 | S89: 2023-03-06 | T89: 151.3 | U89: 2023-02-23
A90: C2337019 | B90: Saint Hippo | C90: FD | D90: 24 | E90: 2 | G90: Virement | H90: 45 jours | I90: FDM | J90: N | K90: Moulé | L90: pièces maint. | M90: Torche pour poste à souder TIG | N90: 117 | P90: 117 | R90: F23020115 | S90: 2023-02-28 | T90: 117 | U90: 2023-03-31
A91: C2337020 | B91: Saint Hippo | C91: FD | D91: 24 | E91: 2 | G91: Virement | H91: 45 jours | I91: FDM | J91: N | K91: Moulé | L91: pièces maint. | M91: Filte mano regulateur pour deboucheuse auto | N91: 112 | P91: =N91+O91 -> 112 | R91: F23030175 | S91: 2023-03-31 | T91: 112 | U91: 2023-05-03
A92: C2315014 | B92: Teissières | C92: LD | D92: 21 | E92: 2 | G92: Virement | H92: 30 jours | I92: FDM | J92: N | K92: PLEIN CIEL | L92: fournitures bureau | M92: BIC TAPIS SOURIS | N92: 363.04 | P92: 363.04 | R92: F266896 | S92: 2023-02-28 | T92: 281.5 | U92: 2023-03-31
A93: C2384018 | B93: Monteux | C93: LM | D93: 27 | E93: 2 | G93: Virement | H93: 30 jours | I93: FDM | J93: n | K93: Linde | L93: consommables de prod | M93: Gaz co2 | P93: 0 | R93: F4231532165 | S93: 2023-02-28 | T93: 707.84
A94: C2399004 | B94: Multi Sources | C94: RB | D94: 28 | E94: 2 | G94: Virement | H94: 45 jours | I94: FDM | J94: n | K94: Bardi | L94: pièces maint. | M94: 10 semi pinces 84 et 20 semi pinces 60 | N94: 4170 | O94: 190 | P94: =N94+O94 -> 4360 | R94: F147 | S94: 2023-03-06 | T94: 4360 | U94: 2023-04-18
A95: C2360026 | B95: Marolles | C95: RB | D95: 28 | E95: 2 | G95: Virement | H95: 45 jours | I95: FDM | J95: n | K95: ECP Thermique | L95: pièces maint. | M95: résistance 100Kw | N95: 1860 | O95: 225 | P95: 2085 | R95: FACTURE PROFORMA | S95: 2023-01-30 | T95: 2085 | U95: 2023-03-15
A96: C2315015 | B96: Teissières | C96: MV | D96: 7 | E96: 3 | G96: Virement | H96: 45 jours | I96: FDM | J96: N | K96: Eurofins centre est (St Etienne) | L96: analyses externes | M96: As-Sb sortie binôme 1 | N96: 11.44 | O96: 8.32 | P96: 19.76
A97: C2360027 | B97: Marolles | C97: FG | D97: 28 | E97: 2 | G97: Virement | H97: 45 jours | I97: FDM | J97: N | K97: ALPHEA | L97: /s traitance maint | M97: Fourniture d'un automate TSX3722 ( paletiseur) | N97: 980 | P97: 980 | R97: F2360027 | S97: 2023-02-28 | T97: 980 | U97: 2023-04-15
A98: C2360028 | B98: Marolles | C98: FG | D98: 28 | E98: 2 | G98: Virement | H98: 45 jours | I98: FDM | J98: N | K98: linde | L98: consommables de prod | M98: Gaz c02 | N98: 538.2 | O98: 125.6 | P98: 663.8 | Q98: 3 | R98: F4231826736 | S98: 2023-03-31 | T98: 685.1 | U98: 2023-05-15
A99: C2360029 | B99: Marolles | C99: SD | D99: 1 | E99: 3 | G99: Virement | H99: 45 jours | I99: FDM | J99: N | K99: Eurofins | L99: analyses externes | M99: REJETS | N99: 91.78 | P99: 91.78 | R99: FEL-SD-23-001115 | S99: 2023-03-31 | T99: 19.76 | U99: 2023-05-03
A100: C2337021 | B100: Saint Hippo | C100: CT | D100: 1 | E100: 3 | G100: Virement | H100: 45 jours | I100: fdm | J100: n | K100: eurofins | L100: analyses externes | M100: rejets | N100: 91.78 | P100: 91.78 | Q100: 3 | R100: FELD-SD-23-001518 | S100: 2023-04-26 | T100: 91.78
A101: C2360030 | B101: Marolles | C101: FG | D101: 2 | E101: 3 | G101: Virement | H101: 45 jours | I101: fdm | J101: n | K101: rs | L101: matériel labo | M101: Thermometre infrarouge | N101: 135 | P101: 135 | Q101: 3 | R101: F482499722 | S101: 2023-03-02 | T101: 135 | U101: 2023-05-03
A102: C2315016 | B102: Teissières | C102: RB | D102: 2 | E102: 3 | G102: Virement | H102: 45 jours | I102: FDM | J102: N | K102: rs | L102: pièces maint. | M102: kit ressorts et raccords pneumatiques, multimètre | N102: 330.68 | P102: =N102+O102 -> 330.68 | R102: F482499723/F482512107 | S102: 02ET 03/03/2023 | T102: 330.68 | U102: 2023-05-03
A103: C2360031 | B103: Marolles | C103: FG | D103: 2 | E103: 3 | G103: Virement | H103: 45 jours | I103: FDM | J103: N | K103: PROLIANS(AIR LIQUIDE) | L103: prdts maint. | M103: GAZ ARCAL | N103: 136.89 | P103: 136.89 | Q103: 3 | R103: F958755472 | S103: 2023-03-31 | T103: 136.89
A104: C2315017 | B104: Teissières | C104: MV | D104: 29 | E104: 3 | G104: virement | H104: 45 jours | I104: FDM | J104: N | K104: Eurofins | L104: analyses externes | M104: eaux de rejets | N104: 53.04 | O104: 38.74 | P104: 91.78 | R104: FEL-SD-23-001517 | S104: 2023-04-26 | T104: 91.78
A105: C2360032 | B105: Marolles | C105: FG | D105: 2 | E105: 3 | G105: virement | H105: 45 jours | I105: FDM | J105: N | K105: rs | L105: pièces maint. | M105: reparation axe verin banderoleuse | N105: 60.24 | P105: 60.24 | Q105: 3 | R105: F482517786 | S105: 2023-03-06 | T105: 60.24 | U105: 2023-05-03
A106: C2384019 | B106: Monteux | C106: RB | D106: 8 | E106: 3 | G106: Virement | H106: 30 jours | I106: FDM | J106: n | K106: Techmadome | L106: pièces maint. | M106: automate S7 et module ext | N106: 507 | P106: =N106+O106 -> 507 | R106: F2304280 | S106: 2023-04-07 | T106: 507
A107: C2384020 | B107: Monteux | G107: Virement | H107: 30 jours | I107: FDM | J107: n | K107: Cogeflu | L107: pièces maint. | M107: Actionneur de vanne remplisseuse | N107: 1966.83 | P107: 1966.83 | R107: FC-017932 | S107: 2023-03-23 | T107: 1966.83 | U107: 2023-05-15
A108: C2384021 | B108: Monteux | C108: JC | D108: 8 | E108: 3 | F108: S 14 | G108: virement | H108: 45 jours | I108: FDM | J108: N | K108: Grosseron | L108: matériel labo | M108: Pompe à vide bactério, membranes et pipettes | N108: 615.92 | O108: 0 | P108: 615.92 | R108: FV2023660899 | S108: 2023-03-17 | T108: 279.58
A109: C2337013 MAWA | B109: MAWA | C109: FD | D109: 8 | E109: 3 | G109: Virement | H109: 45 jours | I109: FDM | J109: N | K109: Electro tours | L109: pièces maint. | M109: divers composants electriques | N109: 164.05 | P109: =N109+O109 -> 164.05
A110: C2315018 | B110: Teissières | C110: MV | D110: 8 | E110: 3 | G110: Virement | H110: 45 jours | I110: FDM | J110: N | K110: Grosseron | L110: prdts labo | M110: Flacons stériles, eau déminéralisée, alcool …. | N110: 862.64 | O110: 0 | P110: 862.64 | R110: FV2023661195 | S110: 2023-03-17 | T110: 862.64
A111: C2315019 | B111: Teissières | C111: MV | D111: 14 | E111: 3 | G111: Virement | H111: 45 jours | I111: FDM | J111: N | K111: Eurofins centre est (St Etienne) | L111: analyses externes | M111: As-Sb Forage F4+F3 | N111: 22.88 | O111: 16.64 | P111: 39.52 | R111: FEL-SD-23-00113 | S111: 2023-03-31 | T111: 39.52 | U111: 2023-05-03
A112: C2360033 | B112: Marolles | C112: RB | D112: 9 | E112: 3 | G112: virement | H112: 45 jours | I112: FDM | J112: N | K112: Videojet | L112: consommables de prod | M112: cartouches encre et solvants | N112: 610.15 | P112: =N112+O112 -> 610.15 | Q112: 3 | R112: F482517786 | S112: 2023-03-06 | T112: 60.24
A113: C2337022 | B113: Saint Hippo | C113: FD | D113: 9 | E113: 3 | F113: 2023-03-14 | G113: Virement | H113: 45 jours | I113: FDM | J113: n | K113: Mabeo | L113: hygiène générale / personnel | M113: chaussures de securité : Emilie et Patrick | N113: 156.71 | O113: 0 | P113: 156.71 | Q113: 3 | R113: F23100376 | S113: 2023-03-20 | T113: 156.71
A114: C2384022 | B114: Monteux | C114: GC | D114: 9 | E114: 3 | G114: Virement | H114: 45 jours | I114: FDM | J114: n | K114: Saffi | L114: pièces maint. | M114: Fer rond inox | P114: 0 | R114: F04224967 | S114: 2023-03-31 | T114: 3.32
A115: C2315020 | B115: Teissières | C115: MV | D115: 13 | E115: 3 | G115: Virement | H115: 45 jours | I115: FDM | J115: N | K115: Biokar | L115: prdts labo | M115: Milieux de culture | N115: 376.24 | O115: 0 | P115: 376.24 | R115: F10203928 | S115: 2023-03-13 | T115: 376.24 | U115: 2023-05-03
A116: C2337023 | B116: Saint Hippo | C116: JC | D116: 22 | E116: 2 | F116: 2023-12-08 | G116: Virement | H116: 30 jours | I116: FDM | J116: n | K116: TSPS | L116: /s traitance maint | M116: Plaques de passage grue Polyservice 37 pour intervention forage du 6 au 8/12/2023 | N116: 3236 | P116: =N116+O116 -> 3236 | Q116: 12
A117: C2315021 | B117: Teissières | C117: RB | D117: 10 | E117: 3 | G117: Virement | H117: 45 jours | I117: FDM | J117: N | K117: Techmadome | L117: pièces maint. | M117: PC OSS2 pour PL7 program enrackeur | N117: 297 | O117: 25 | P117: 322 | R117: F2304280 | S117: 2023-04-07 | T117: 322
A118: C2315022 | B118: Teissières | C118: RB | D118: 13 | E118: 3 | G118: Virement | H118: 46 jours | I118: FDM | J118: N | K118: yesss | L118: pièces maint. | M118: 50m de câble 5G0,75 | N118: 49.82 | P118: =N118+O118 -> 49.82 | R118: FAUC-022682
A119: C2360034 | B119: Marolles | C119: RB | D119: 14 | E119: 3 | G119: virement | H119: 45 jours | I119: FDM | J119: N | K119: ECOLAB | L119: pièces maint. | M119: 1 pompe ELADOS + kit de raccordement | N119: 2564.75 | O119: 504.85 | P119: 3069.6
A120: C2360034 B | B120: Marolles | C120: RB | D120: 14 | E120: 3 | G120: virement | H120: 46 jours | I120: FDM | J120: N | K120: ECOLAB | L120: pièces maint. | M120: 1 pompe ELADOS + kit de raccordement | N120: 11.05 | Q120: 4 | R120: F6320744416 | S120: 2023-04-13 | T120: 11.05
A121: C2360035 | B121: Marolles | C121: FG | D121: 14 | E121: 3 | G121: virement | H121: 45 jours | I121: FDM | J121: N | K121: trenois | L121: hygiène générale / personnel | M121: Chaussure + electrode inox | N121: 117.82 | P121: 117.82 | Q121: 3 | R121: f1592602 | S121: 2023-03-31 | T121: 122.33 | U121: 2023-05-03
A122: C2315023 | B122: Teissières | C122: LD | D122: 13 | E122: 3 | G122: Virement | H122: 30 jours | I122: FDM | J122: N | K122: PLEIN CIEL | L122: fournitures bureau | M122: RAMETTE A4 Post-it enveloppes intercalaires lingettes main | N122: 321.15 | P122: 321.15 | R122: F267620 | S122: 2023-03-31 | T122: 321.15 | U122: 2023-05-03
A123: C2337014 MAWA | B123: MAWA | C123: FD | D123: 13 | E123: 3 | G123: Virement | H123: 45 jours | I123: FDM | J123: N | K123: Marceul | L123: pièces maint. | M123: Cartouche de silicone pour trappes | R123: Annulée Avoir
A124: C2337015 MAWA | B124: MAWA | C124: FD | D124: 10 | E124: 3 | G124: Virement | H124: 45 jours | I124: FDM | J124: N | K124: Electro tours | L124: pièces maint. | M124: Diver composants electriques | N124: 308.88 | P124: =N124+O124 -> 308.88 | R124: F043258 | S124: 2023-03-31 | T124: 308.88 | U124: 2023-05-03
A125: C2337016 MAWA | B125: MAWA | C125: FD | D125: 14 | E125: 3 | F125: 2023-03-15 | G125: Virement | H125: 45 jours | I125: FDM | J125: N | K125: PROLIANS | L125: pièces maint. | M125: Plaque de plexi pour laveuse | N125: 398.08 | P125: 398.08 | R125: F9S37577 | S125: 2023-03-31 | T125: 398.08 | U125: 2023-05-03
A126: C2337024 | B126: Saint Hippo | C126: FD | D126: 14 | E126: 3 | F126: 2023-03-15 | G126: Virement | H126: 45 jours | I126: FDM | J126: N | K126: PROLIANS | L126: pièces maint. | M126: Plaque de plexi pour porte laveuse | N126: 199.04 | P126: 199.04 | R126: F9S37577 | S126: 2023-03-31 | T126: 199.04 | U126: 2023-05-03
A127: C2337025 | B127: Saint Hippo | C127: FD | D127: 15 | E127: 3 | G127: Virement | H127: 45 jours | I127: FDM | J127: N | K127: Balnc bleu | L127: /s traitance maint | M127: Nacelle mat vertical pour pose des radiant en en noel et 1er de l'an 2022 dans l'atelier | N127: 410.48 | O127: 65.01 | P127: 475.49 | R127: FL209-0010064 | S127: 2023-03-31 | T127: 475.49 | U127: 2023-05-15
A128: C2337026 | B128: Saint Hippo | C128: FD | D128: 15 | E128: 3 | G128: Virement | H128: 45 jours | I128: FDM | J128: N | K128: Marceul | L128: prdts maint. | M128: Re appro visserie inox maintenance atelier | N128: 569.25 | P128: =N128+O128 -> 569.25 | R128: F35844 | S128: 2023-03-31 | T128: 569.25 | U128: 2023-05-03
A129: C2337027 | B129: Saint Hippo | C129: FD | D129: 16 | E129: 3 | G129: Virement | H129: 45 jours | I129: FDM | J129: N | K129: rs | L129: prdts maint. | M129: Capteurs atelier | N129: 444.54 | P129: =N129+O129 -> 444.54 | R129: F482522939 | S129: 2023-03-16 | T129: 444.54 | U129: 2023-05-03
A130: C2337028 | B130: Saint Hippo | C130: FD | D130: 20 | E130: 3 | G130: Virement | H130: 45 jours | I130: FDM | J130: N | K130: GARIC | L130: /s traitance maint | M130: Intervention alarme detecteur Labo | N130: 242 | P130: 242 | R130: FA066/03/2023 | S130: 2023-04-05 | T130: 242
A131: C2360036 | B131: Marolles | C131: SD | D131: 17 | E131: 3 | G131: Virement | H131: 45 jours | I131: FDM | J131: N | K131: Biokar | L131: prdts labo | M131: Milieux de culture | N131: 343.1 | O131: 0 | P131: 343.1 | Q131: 3 | R131: F10204479 | S131: 2023-03-20 | T131: 334.17
A132: C2384023 | B132: Monteux | C132: GC | D132: 20 | E132: 3 | G132: Virement | H132: 45 jours | I132: FDM | J132: N | K132: Andrety | L132: Sécurité / Environnement | M132: gilets +matériel atelier | N132: 210.72 | P132: 210.72 | R132: FMO22655 | S132: 2023-03-31 | T132: 210.72 | U132: 2023-05-03
A133: C2360037 | B133: Marolles | C133: FG | D133: 21 | E133: 3 | G133: Virement | H133: 45 jours | I133: FDM | J133: N | K133: DEXIS | L133: pièces maint. | M133: barriere immaterielle banderoleuse | N133: 2263.58 | P133: 2263.58 | Q133: 3 | R133: FFR0323-1022400 | S133: 2023-03-31 | T133: 2132.46 | U133: 2023-05-03
A134: C2360037 B | B134: Marolles | C134: FG | D134: 21 | E134: 3 | G134: Virement | H134: 46 jours | I134: FDM | J134: N | K134: DEXIS | L134: pièces maint. | M134: barriere immaterielle banderoleuse | N134: 22.04 | P134: 22.04 | Q134: 3
A135: C2360037 C | B135: Marolles | C135: FG | D135: 21 | E135: 3 | G135: Virement | H135: 47 jours | I135: FDM | J135: N | K135: DEXIS | L135: pièces maint. | M135: barriere immaterielle banderoleuse | N135: 80 | P135: 80 | Q135: 4
A136: C2315024 | B136: Teissières | C136: MV | D136: 21 | E136: 3 | G136: Virement | H136: 45 jours | I136: FDM | J136: N | K136: Eurofins centre est (St Etienne) | L136: analyses externes | M136: As-Sb sortie binôme 1 | N136: 11.44 | O136: 8.32 | P136: =N136+O136 -> 19.76 | R136: FEL-SD-23-001115 | S136: 2023-03-31 | T136: 19.76 | U136: 2023-05-03
A137: C2360038 | B137: Marolles | C137: FG | D137: 21 | E137: 3 | G137: Virement | H137: 45 jours | I137: FDM | J137: N | K137: WATTOHM | L137: pièces maint. | M137: turbine aspiration bardie ( turbine seule) | N137: 334 | O137: 65 | P137: 399 | Q137: 3 | R137: F2306824 | S137: 2023-03-29 | T137: 399 | U137: 2023-05-03
A138: C2360039 | B138: Marolles | C138: FG | D138: 21 | E138: 3 | G138: Virement | H138: 45 jours | I138: FDM | J138: N | K138: LINDE | L138: consommables de prod | M138: Gaz c02 | N138: 538.2 | O138: 125.6 | P138: 663.8 | Q138: 3 | R138: F4231826736 | S138: 2023-03-31 | T138: 685.1 | U138: 2023-05-15
A139: C2337017 MAWA | B139: MAWA | C139: FD | D139: 14 | E139: 3 | G139: Virement | H139: 45 jours | I139: FDM | J139: N | K139: PROLIANS | L139: pièces maint. | M139: Pofilé U inox | N139: 418.56 | O139: 109 | P139: 527.56 | R139: F9S37577 | S139: 2023-03-31 | T139: 418.56 | U139: 2023-05-03
A140: C2337018 MAWA | B140: MAWA | C140: FD | D140: 14 | E140: 3 | G140: Virement | H140: 45 jours | I140: FDM | J140: N | K140: Moulé | L140: pièces maint. | M140: Cartouche Colle polymere | N140: 10.5 | P140: =N140+O140 -> 10.5 | R140: F23030175 | S140: 2023-03-31 | T140: 10.5 | U140: 2023-05-03
A141: C2360040 | B141: Marolles | C141: JC | D141: 21 | E141: 3 | F141: 2023-05-21 | G141: Virement | H141: 45 jours | I141: FDM | J141: O | K141: Atemip | L141: consommables de prod | M141: Réalisation de 2 pavés vierges pour moule poignées de col 1 way non gravées ES | N141: 1400 | O141: 0 | P141: 1400 | R141: FA34589 | S141: 2023-03-28 | T141: 700 | U141: 2023-04-15
A142: C2337028 MAWA | B142: MAWA | C142: FD | D142: 22 | E142: 3 | G142: Virement | H142: 45 jours | I142: FDM | J142: N | K142: Moulé | L142: prdts maint. | M142: Tige filetée | N142: 22 | P142: 22 | R142: F23030175 | S142: 2023-03-31 | T142: 22 | U142: 2023-05-03
A143: C2337029 | B143: Saint Hippo | C143: FD | D143: 22 | E143: 3 | G143: Virement | H143: 45 jours | I143: FDM | J143: N | K143: Marceul | L143: prdts maint. | M143: Vis reparation Rack | N143: 32.66 | P143: =N143+O143 -> 32.66 | R143: F35844 | S143: 2023-03-31 | T143: 32.66 | U143: 2023-05-03
A144: C2360041 | B144: Marolles | C144: FG | D144: 22 | E144: 3 | G144: Virement | H144: 45 jours | I144: FDM | J144: N | K144: RS | L144: pièces maint. | M144: nettoyant contact , attache rapide , connecteur y siement pour et200 | N144: 178.1 | P144: 178.1 | Q144: 3 | R144: F482610820/F482611930 | S144: 22 ET 23/03/2023 | T144: 178.1 | U144: 2023-05-03
A145: C2337030 | B145: Saint Hippo | C145: FD | D145: 22 | E145: 3 | G145: Virement | H145: 45 jours | I145: FDM | J145: N | K145: Marceul | L145: prdts maint. | M145: Electrodes tungstene soudure TIG | N145: 62.4 | P145: 62.4 | R145: F35844 | S145: 2023-03-31 | T145: 62.4 | U145: 2023-05-03
A146: C2337019 MAWA | B146: MAWA | C146: FD | D146: 23 | E146: 3 | G146: Virement | H146: 45 jours | I146: FDM | J146: N | K146: Prolians | L146: pièces maint. | M146: Tole larmée | N146: 1584.64 | P146: 1584.64 | R146: F9S49333 | S146: 2023-04-30 | T146: 1545.64
A147: C2360042 | B147: Marolles | C147: FG | D147: 23 | E147: 3 | G147: Virement | H147: 45 jours | I147: FDM | J147: N | K147: RS | L147: prdts maint. | M147: reflecteur + capteur + bottes | N147: 188.57 | P147: 188.57 | Q147: 3 | R147: F482611931 | S147: 2023-03-23 | T147: 188.57 | U147: 2023-05-03
A148: C2337031 | B148: Saint Hippo | C148: FD | D148: 24 | E148: 3 | F148: 2023-03-24 | G148: Virement | H148: 45 jours | I148: FDM | J148: N | K148: LM manutention | L148: maint chariots élév | M148: Chariot de remplacement car n° CE266232 verin hs | P148: =N148+O148 -> 0 | R148: FTO30017/L23 | S148: 2023-03-31 | T148: 795.9
A149: C2384024 | B149: Monteux | C149: LM | D149: 24 | E149: 3 | G149: Virement | H149: 30 jours | I149: FDM | J149: N | K149: eurofins | L149: analyses externes | M149: rejets | N149: 91.78 | P149: 91.78 | R149: EL-SD-23001519 | S149: 2023-04-26 | T149: 91.78
A150: C2337032 | B150: Saint Hippo | C150: FD | D150: 24 | E150: 3 | G150: Virement | H150: 45 jours | I150: FDM | J150: N | K150: MEC | L150: pièces maint. | M150: Chaine + pignons convoyeur bouchage | N150: 126.72 | P150: 126.72
A151: C2360043 | B151: Marolles | C151: SD | D151: 24 | E151: 3 | G151: Virement | H151: 45 jours | I151: FDM | J151: N | K151: Grosseron | L151: prdts labo | M151: Divers | N151: 404.34 | O151: 0 | P151: 404.34 | Q151: 3 | R151: FV2023664088 | S151: 2023-03-31 | T151: 339.32
A152: C2337033 | B152: Saint Hippo | C152: FD | D152: 27 | E152: 3 | G152: Virement | H152: 45 jours | I152: FDM | J152: N | K152: Marceul | L152: pièces maint. | M152: foret pour inox | N152: 81.06 | P152: =N152+O152 -> 81.06 | R152: F35844 | S152: 2023-03-31 | T152: 81.06 | U152: 2023-05-03
A153: C2384025 | B153: Monteux | C153: GC | D153: 27 | E153: 3 | G153: Virement | H153: 45 jours | I153: FDM | J153: N | K153: Manutention Tricastine | L153: location matériel | M153: Location chariot élévateur | N153: 873 | P153: 873 | R153: F44516/44536 | S153: 2023-04-27 | T153: 1440.9
A154: C2360044 | B154: Marolles | C154: FG | D154: 28 | E154: 3 | G154: Virement | H154: 45 jours | I154: FDM | J154: N | K154: RS | L154: pièces maint. | M154: serre cable + inter | N154: 52.6 | P154: 52.6 | Q154: 3 | R154: F482641752 | S154: 2023-03-28 | T154: 45.53 | U154: 2023-05-03
A155: C2337020 MAWA | B155: MAWA | C155: FD | D155: 15 | E155: 3 | G155: Virement | H155: 45 jours | I155: FDM | J155: N | K155: Marceul | L155: pièces maint. | M155: Cartouche Colle polymere | N155: 14.18 | P155: =N155+O155 -> 14.18 | Q155: 3 | R155: F35844 | S155: 2023-03-31 | T155: 14.18 | U155: 2023-05-03
A156: C2337021 MAWA | B156: MAWA | C156: FD | D156: 15 | E156: 3 | G156: Virement | H156: 45 jours | I156: FDM | J156: N | K156: Marceul | L156: pièces maint. | M156: Cartouche Colle polymere | N156: 21.15 | P156: =N156+O156 -> 21.15 | Q156: 3 | R156: F35844 | S156: 2023-03-31 | T156: 21.15 | U156: 2023-05-03
A157: C2315025 | B157: Teissières | C157: MV | D157: 4 | E157: 4 | G157: Virement | H157: 45 jours | I157: FDM | J157: N | K157: Eurofins centre est (St Etienne) | L157: analyses externes | M157: As-Sb Entrée Traitement + sortie binôme 1 | N157: 22.88 | O157: 16.64 | P157: 39.52 | R157: FEL-SD-23-001511 | S157: 2023-04-26 | T157: 39.52
A158: C2360045 | B158: Marolles | C158: FG | D158: 30 | E158: 3 | G158: Virement | H158: 45 jours | I158: FDM | J158: N | K158: LINDE | L158: consommables de prod | M158: GAZ C02 | N158: 538.2 | O158: 125.6 | P158: 663.8 | Q158: 4 | R158: F4232117794 | S158: 2023-04-30 | T158: 685.1
A159: C2315026 | B159: Teissières | C159: RB | D159: 30 | E159: 3 | G159: Virement | H159: 45 jours | I159: FDM | J159: N | K159: PROLIANS | L159: Sécurité / Environnement | M159: chaussures et savon | P159: 0 | R159: FAS63994 | S159: 2023-03-31 | T159: 54.3
A160: C2315027 | B160: Teissières | C160: RB | D160: 30 | E160: 3 | G160: Virement | H160: 46 jours | I160: FDM | J160: N | K160: Techmadome | L160: pièces maint. | M160: automate 3722 tsx | N160: 324 | O160: 20 | P160: =N160+O160 -> 344 | R160: F2304280 | S160: 2023-04-07 | T160: 344
A161: C2337034 | B161: Saint Hippo | C161: FD | D161: 3 | E161: 4 | G161: Virement | H161: 45 jours | I161: FDM | J161: N | K161: Maintenance Industrielle | L161: pièces maint. | M161: Purgeur compresseur | N161: 478.45 | P161: =N161+O161 -> 478.45
A162: C2337035 | B162: Saint Hippo | C162: FD | D162: 31 | E162: 3 | G162: Virement | H162: 45 jours | I162: FDM | J162: N | K162: Endress et Hauser | L162: pièces maint. | M162: Remplacement debitmetre forage intervention du 12/2023 | N162: 2435.63 | P162: 2435.63 | Q162: 4
A163: C2360046 | B163: Marolles | C163: FG | D163: 31 | E163: 3 | G163: Virement | H163: 45 jours | I163: FDM | J163: N | K163: MEC | L163: pièces maint. | M163: Complement barriere immateriel banderoleuse | N163: 1153.25 | P163: 1153.25 | Q163: 3 | R163: FFR0323-1022406 | S163: 2023-03-31 | T163: 1168.25 | U163: 2023-05-03
A164: C2360047 | B164: Marolles | C164: FG | D164: 31 | E164: 3 | G164: Virement | H164: 45 jours | I164: FDM | J164: N | K164: DEXIS | L164: pièces maint. | M164: Chaine convoyeur a rouleau entrée robot | N164: 1936.99 | O164: 35 | P164: 1971.99 | Q164: 4
A165: C2315028 | B165: Teissières | C165: RB | D165: 3 | E165: 4 | G165: Virement | H165: 45 jours | I165: FDM | J165: N | K165: still | L165: pièces maint. | M165: bandages arrières sur jante RX 20-18 | N165: 649 | P165: 649
A166: C2384026 | B166: Monteux | C166: LM | D166: 3 | E166: 4 | G166: virement | H166: 45 jours | I166: FDM | J166: N | K166: Biokar | L166: prdts labo | M166: Milieux de culture | N166: 335.42 | P166: 335.42
A167: C2384027 | B167: Monteux | C167: LM | D167: 4 | E167: 4 | G167: Virement | H167: 45 jours | I167: FDM | J167: n | K167: Grosseron | L167: prdts labo | M167: trompe à vide, bandelettes | N167: 405.02 | P167: 405.02
A168: C2384028 | B168: Monteux | C168: LM | D168: 4 | E168: 4 | G168: Virement | H168: 45 jours | I168: FDM | J168: N | K168: PLEIN CIEL | L168: fournitures bureau | M168: papier, marqueur | N168: 77.73 | P168: 77.73 | Q168: 4 | R168: FCA-025020 | S168: 2023-04-29 | T168: 77.73
A169: C2315029 | B169: Teissières | C169: MV | D169: 25 | E169: 4 | G169: Virement | H169: 45 jours | I169: FDM | J169: N | K169: Eurofins centre est (St Etienne) | L169: analyses externes | M169: As-Sb sortie binôme 1 | N169: 11.44 | O169: 8.32 | P169: 19.76 | Q169: 4
A170: C2315030 | B170: Teissières | C170: RB | D170: 5 | E170: 4 | G170: Virement | H170: 45 jours | I170: FDM | J170: N | K170: radiospares | L170: pièces maint. | M170: relais 110V / capteur / BP / boites dériv………; | N170: 459.5 | P170: =N170+O170 -> 459.5 | R170: F482688548 | S170: 2023-04-05 | T170: 459.5
A171: C2315031 | B171: Teissières | C171: RB | D171: 5 | E171: 4 | G171: Virement | H171: 45 jours | I171: FDM | J171: N | K171: Gervais | L171: prdts maint. | M171: Torche pour poste à souder TIG | N171: 188.29 | P171: =N171+O171 -> 188.29 | R171: F230046475 (AVOIR A RECEVOIR) | S171: 2023-04-30 | T171: 188.29
A172: C2360048 | B172: Marolles | C172: FG | D172: 5 | E172: 4 | G172: Virement | H172: 45 jours | I172: FDM | J172: N | K172: TRENOIS | L172: hygiène générale / personnel | M172: Chaussure Mika, Theo,Clement,Bryan + abatant wc chauffeur+ papier wc + brosse + savon + clé | N172: 528.96 | P172: 528.96 | Q172: 4 | R172: F1654759 | S172: 2023-04-30 | T172: 533.47
A173: C2315032 | B173: Teissières | C173: RB | D173: 6 | E173: 4 | G173: Virement | H173: 45 jours | I173: FDM | J173: N | K173: radiospares | L173: pièces maint. | M173: capteurs mecaniques palettiseur | N173: 477.75 | P173: 477.75 | R173: F482696809 | S173: 2023-04-06 | T173: 477.75
A174: C2360049 | B174: Marolles | C174: SD | D174: 6 | E174: 4 | G174: virement | H174: 45 jours | I174: FDM | J174: n | K174: INTERACTIVE PAPETERIE | L174: fournitures bureau | M174: Divers | N174: 309.52 | P174: 309.52 | Q174: 4 | R174: F268282 | S174: 2023-04-30 | T174: 190.15
A175: C2360050 | B175: Marolles | C175: SD | D175: 6 | E175: 4 | G175: Virement | H175: 45 jours | I175: FDM | J175: n | K175: INTERACTIVE PAPETERIE | L175: fournitures bureau | M175: Siège bureau + feuilles | N175: 190.15 | P175: 190.15 | Q175: 4 | R175: F268282 | S175: 2023-04-30 | T175: 309.52
A176: C2315033 | B176: Teissières | C176: RB | D176: 7 | E176: 4 | G176: Virement | H176: 45 jours | I176: FDM | J176: N | K176: still | L176: pièces maint. | M176: bandages arrière RX20-20 | N176: 492 | P176: =N176+O176 -> 492 | Q176: 02/05/23
A177: C2337022 MAWA | B177: MAWA | C177: FD | D177: 7 | E177: 4 | G177: Virement | H177: 45 jours | I177: FDM | J177: N | K177: Marceul | L177: pièces maint. | M177: Cartouche Colle polymere | N177: 14.18 | P177: 14.18 | Q177: 4 | R177: f36771 | S177: 2023-04-30 | T177: 14.18
A178: C2315034 | B178: Teissières | C178: RB | D178: 11 | E178: 4 | G178: Virement | H178: 45 jours | I178: FDM | J178: N | K178: radiospares | L178: pièces maint. | M178: cables 1mm² x2 et tetes 3 positions et relais pour modification enrackeur | N178: 226.68 | P178: 226.68 | Q178: 24/04/23 | R178: F482713759 | S178: 2023-04-11 | T178: 226.68
A179: C2337036 | B179: Saint Hippo | C179: FD | D179: 13 | E179: 4 | G179: Virement | H179: 45 jours | I179: FDM | J179: N | K179: RS | L179: pièces maint. | M179: Verins smc tremie bouchons+ capteur niveau rejet +visserie | N179: 302.91 | P179: 302.91 | Q179: 4 | R179: F482725026/F482735452 | S179: 13 ET 17/04/2023 | T179: 217.72
A180: C2360051 | B180: Marolles | C180: FG | D180: 17 | E180: 4 | G180: Virement | H180: 45 jours | I180: FDM | J180: N | K180: LINDE | L180: consommables de prod | M180: gaz c02 | N180: 538.2 | O180: 125.6 | P180: 663.8 | Q180: 4 | R180: F4232117794 | S180: 2023-04-30 | T180: 685.1
A181: C2337037 | B181: Saint Hippo | C181: FD | D181: 13 | E181: 4 | G181: Virement | H181: 45 jours | I181: FDM | J181: N | K181: SEFI | L181: prdts maint. | M181: BOMBE de graisse | N181: 163.84 | O181: 10.86 | P181: 174.7 | Q181: 4 | R181: F291285 | S181: 2023-04-26 | T181: 174.3
A182: C2384029 | B182: Monteux | C182: GC | D182: 12 | E182: 4 | G182: Virement | H182: 45 jours | I182: FDM | J182: N | K182: Frans bonhomme | L182: pièces maint. | M182: Marériel pour évacuation eau | N182: 152.68 | P182: 152.68 | R182: F23-279642 | S182: 2023-04-15 | T182: 152.68
A183: C2384030 | B183: Monteux | C183: GC | D183: 18 | E183: 4 | G183: Virement | H183: 45 jours | I183: FDM | J183: N | K183: RS | L183: pièces maint. | M183: Balise cligniotante+peinture | N183: 116.43 | P183: 116.43 | R183: F482740218 | S183: 2023-04-18 | T183: 116.43
A184: C2337038 | B184: Saint Hippo | C184: CT | D184: 20 | E184: 4 | G184: Virement | H184: 45 jours | I184: FDM | J184: N | K184: Biokar | L184: prdts labo | M184: geloses | N184: 334.45 | P184: 334.45 | Q184: 4 | R184: F10207515 | S184: 2023-04-26 | T184: 334.45
A185: C2399005 | B185: Multi Sources | C185: RC | D185: 24 | E185: 4 | G185: Virement | H185: 30 jours | I185: FDM | J185: N | K185: MSI Conseils | L185: fournitures bureau | M185: Mise à jour antivirus de l'ensemble des postes informatiques | N185: 781.66 | P185: 781.66
A186: C2337039 | B186: Saint Hippo | C186: FD | D186: 25 | E186: 4 | G186: Virement | H186: 45 jours | I186: FDM | J186: N | K186: Electro tours | L186: prdts maint. | M186: Capteur et tete de capteurs sortie deboucheuse | N186: 38.23 | P186: =N186+O186 -> 38.23 | Q186: 5
A187: C2315035 | B187: Teissières | C187: RB | D187: 24 | E187: 4 | G187: Virement | H187: 45 jours | I187: FDM | J187: N | K187: yesss | L187: pièces maint. | M187: cable | N187: 49.82 | P187: 49.82 | Q187: 25/04/23
A188: C2360052 | B188: Marolles | C188: FG | D188: 26 | E188: 4 | G188: Virement | H188: 45 jours | I188: FDM | J188: N | K188: LINDE | L188: consommables de prod | M188: GAZ C02 | N188: 538.2 | O188: 125.6 | P188: 663.8
A189: C2337040 | B189: Saint Hippo | C189: CT | D189: 27 | E189: 4 | G189: Virement | H189: 45 jours | I189: FDM | J189: n | K189: madeleine bijoux | L189: prestation générale | M189: Biscuits | N189: 78.09 | P189: 78.09 | Q189: 4 | R189: F3804145 | S189: 2023-05-02 | T189: 78.09
A190: C2315036 | B190: Teissières | C190: RB | D190: 1 | E190: 5 | G190: Virement | H190: 45 jours | I190: FDM | J190: N | K190: Christeyns | L190: consommables de prod | N190: 2373 | P190: 2373
A191: C2315037 | B191: Teissières | C191: LD | D191: 27 | E191: 4 | G191: Virement | H191: 30 jours | I191: FDM | J191: N | K191: Plein ciel | L191: fournitures bureau | M191: Agrafes, Ramette A4, Scotch, piles | N191: 246.62 | P191: 246.62 | Q191: 05
A192: C2399006 | B192: Multi Sources | C192: RB | D192: 3 | E192: 5 | G192: Virement | H192: 45 jours | I192: FDM | K192: MYDIS | L192: pièces maint. | M192: 3 paires de capteurs à ultrasons M18 + câbles | N192: 943.68 | P192: 943.68
A193: C2315038 | B193: Teissières | C193: RB | D193: 3 | E193: 5 | F193: fin 05 | G193: Virement | H193: 45 jours | I193: FDM | J193: N | K193: still | L193: pièces maint. | M193: 2 éléments de batterie RX20 | N193: 748 | O193: 50 | P193: =N193+O193 -> 798
A194: C2315039 | B194: Teissières | C194: RB | D194: 3 | E194: 5 | F194: fin 06 | G194: Virement | H194: 45 jours | I194: FDM | J194: N | K194: Reals | L194: pièces maint. | M194: 8 galets pour transpals EXU | N194: 167.44 | O194: 22 | P194: =N194+O194 -> 189.44 | Q194: 05/05
A195: C2315040 | B195: Teissières | C195: MV | E195: 5 | G195: Virement | H195: 45 jours | I195: FDM | J195: N | K195: Eurofins centre est (St Etienne) | L195: analyses externes | M195: As-Sb sortie binôme 1 | N195: 11.44 | O195: 8.32 | P195: 19.76
A196: C2337023 MAWA | B196: MAWA | C196: FD | E196: 4 | G196: Virement | H196: 45 jours | I196: FDM | J196: N | K196: Marceul | L196: pièces maint. | M196: Verrou servante car perte cle du 1er | N196: 20.9 | P196: 20.9 | Q196: 5 | R196: F36771 | S196: 45036 | T196: 20.9
A197: C2315041 | B197: Teissières | C197: RB | D197: 5 | E197: 5 | F197: fin 05 | G197: Virement | H197: 45 jours | I197: FDM | J197: N | K197: ABC emballage | L197: consommables de prod | M197: feuillard manuel en PP et feuillard textile presse à balles | N197: 550.2 | P197: =N197+O197 -> 550.2
A198: C2337041 | B198: Saint Hippo | C198: FD | D198: 5 | E198: 5 | F198: fin 05 | G198: Virement | H198: 45 jours | I198: FDM | J198: n | K198: BMI moteurs | L198: prdts maint. | M198: Variaterus de vitesse stock pour enrackeur palettiseur et filmeuse | N198: 710 | O198: 30 | P198: 740 | Q198: 5
P199: 0
P200: 0
P201: =N201+O201 -> 0
... 220 more rows

Sheet Listes de choix
A1: Usine | B1: Mois | C1: Mode de paiement | D1: Délai paiement | E1: Échéance | F1: Service
A2: MAWA | B2: 1 | C2: Autre | D2: 30 jours | E2: Autre | F2: /s traitance géné | G2: 61100000
A3: Montarcher | B3: 2 | C3: Chèque | D3: 45 jours | E3: FDM | F3: /s traitance maint | J3: 60260000 | K3: Emballages consommables
A4: Monteux | B4: 3 | C4: LCR-Traite | D4: 60 jours | E4: FDM10 | F4: /s traitance qual | J4: 60261000 | K4: Emballages Intermédiaires
A5: Multi Sources | B5: 4 | C5: Prélèvement | D5: Autre | E5: FDM15 | F5: analyses externes | G5: 61700000
A6: Saint Hippo | B6: 5 | C6: Virement | D6: Réception chantier | E6: NET | F6: commercial
A7: Siège | B7: 6 | D7: Réception facture | F7: consommables de prod | G7: 60630000
A8: Teissières | B8: 7 | F8: emballages | G8: 602
A9: Marolles | B9: 8 | F9: emballages kits
B10: 9 | F10: énergies | G10: 60610000
B11: 10 | F11: fournitures bureau | G11: 60640000
B12: 11 | F12: hygiène générale / personnel | G12: 60639000
B13: 12 | F13: ingrédients
F14: location matériel | G14: 61350000
F15: maint chariots élév | G15: 61550000
F16: matériel souffleuse | G16: 60630010
F17: matériel labo | G17: 60636000
F18: matériel R&D
F19: Matériel vente aux particuliers et distrib
F20: pièces maint. | G20: 60630000
F21: prdts labo | G21: 60631100
F22: prdts maint.
F23: prdts nettoyage prod
F24: prestation générale
F25: Sécurité / Environnement | G25: 60639000
F26: Batiment
F27: transport | G27: 60810000
